Cogmind - Beta 13 @@@ ROGUE MODE // 2024.06.26 @ 12:06:57 Player: GreenMir Result: Destroyed by as-32439 with Assembled Blade Performance ------------- Evolutions (1) 500 Regions Visited (3) 600 Robots Destroyed (24) 120 Value Destroyed (639) 639 Prototype IDs (2) 40 Alien Tech Used (0) 0 Bonus (0) 0 TOTAL SCORE: 1899 Bonus ------- None Cogmind --------- Core Integrity 0/400 Matter 190/300 Energy 100/100 System Corruption 10% Temperature Cool (0) Movement Core (350) Ox6 Location -9/Mines Parts ------- > --- POWER (1) -------- (None) > --- PROPULSION (3) --- (None) > --- UTILITY (3) ------ Large Storage Unit > --- WEAPON (2) ------- (None) > --- INVENTORY (15) --- Ion Engine Improved Ion Engine Light Deuterium Engine Heat Sink Improved Heat Sink Small Storage Unit Large Storage Unit Launcher Guidance Computer Peak State ------------ > --- POWER ------------ Light Nuclear Core > --- PROPULSION ------- Aluminum Leg Aluminum Leg Aluminum Leg > --- UTILITY ---------- Large Storage Unit Terrain Scan Processor ECM Suite > --- WEAPON ----------- Beam Cannon Light Assault Rifle > --- INVENTORY -------- Ion Engine Ion Engine Light Ion Engine Improved Ion Engine Aluminum Leg Aluminum Leg Heat Sink Heat Sink Improved Heat Sink Small Storage Unit Large Storage Unit Medium Armor Plating Light Assault Rifle [Rating: 13] Favorites ----------- Power Ion Engine Engine Ion Engine Power Core Light Nuclear Core Propulsion Aluminum Leg Treads Light Treads Leg Aluminum Leg Utility Large Storage Unit Device ECM Suite Storage Large Storage Unit Processor Terrain Scan Processor Protection Medium Armor Plating Weapon Light Assault Rifle Energy Cannon Beam Cannon Ballistic Gun Light Assault Rifle Launcher Mini Grenade Launcher Build | -11 -10 -9 -9 ------- Run | Yrd Mat Mat Min Slots Evolved 2 | . . 2 . Power . | . . . . Propulsion 1 | . . 1 . Utility 1 | . . 1 . Weapon . | . . . . Parts Attached 40 | 7 8 11 14 Power 8 | 1 1 2 4 Engine 7 | 1 1 2 3 Core 1 | . . . 1 Reactor . | . . . . Propulsion 15 | 2 3 6 4 Treads 3 | . 2 1 . Leg 12 | 2 1 5 4 Wheel . | . . . . Hover . | . . . . Flight . | . . . . Utility 9 | 2 2 3 2 Device 4 | . 2 1 1 Storage 3 | 2 . 1 . Processor 1 | . . 1 . Hackware . | . . . . Protection 1 | . . . 1 Artifact . | . . . . Weapon 8 | 2 2 . 4 Energy Gun . | . . . . Energy Cannon 1 | . . . 1 Ballistic Gun 6 | 2 2 . 2 Ballistic Cannon . | . . . . Launcher 1 | . . . 1 Special Weapon . | . . . . Impact Weapon . | . . . . Slashing Weapon . | . . . . Piercing Weapon . | . . . . Special Melee Weapon . | . . . . Unidentified Prototypes . | . . . . Parts Lost 20 | . . 1 19 Power 3 | . . . 3 Propulsion 6 | . . . 6 Utility 5 | . . 1 4 Weapon 6 | . . . 6 Highest Loss Streak 8 | . . 1 8 To Critical Strikes 1 | . . . 1 Average Slot Usage (%) 91 | . 97 91 88 Engine 9 | . 14 11 6 Core 1 | . . . 3 Treads 5 | . 13 7 . Leg 20 | . 12 18 26 Device 10 | . 10 14 9 Storage 13 | . 17 11 11 Processor 6 | . . 6 10 Energy Cannon 2 | . . . 6 Ballistic Gun 18 | . 28 22 10 Launcher 1 | . . . 3 Naked Turns . | . . . . Heaviest Build 32 | 18 18 32 31 Greatest Support 40 | 20 40 40 33 Greatest Overweight (x) 6 | . . 2 6 Average Overweight (x) . | . . . 1 Largest Inventory Capacity 15 | 8 8 15 15 Average Capacity 12 | 7 8 13 15 Most Carried 14 | 6 8 14 14 Average Carried 8 | 3 5 9 11 Final Capacity 15 | 8 8 15 15 Final Carried 14 | 4 8 14 8 Class Distribution -------------------- 62% | Mutant 37% | Scavenger-Mutant Dominant Class ---------------- Mutant | -10/Materials Mutant | -9/Materials Scavenger-Mutant | -9/Mines Resources | -11 -10 -9 -9 ----------- Run | Yrd Mat Mat Min Matter Collected 797 | 290 132 205 170 Remotely . | . . . . Salvage Created 836 | 56 201 268 311 Parts 63 | 3 19 15 26 Haulers Intercepted . | . . . . Recyclers Shooed . | . . . . Parts Field Recycled . | . . . . Retrieved Matter . | . . . . Parts Self-Destructed . | . . . . Prevented . | . . . . Kills | -11 -10 -9 -9 ------- Run | Yrd Mat Mat Min Combat Hostiles Destroyed 30 | . 6 6 18 Guns 15 | . 6 6 3 Cannons 6 | . . . 6 AOE 9 | . . . 9 Classes Destroyed 9 | 1 3 2 3 Tunneler 1 | . . . 1 Recycler 1 | 1 . . . Watcher 1 | . 1 . . Swarmer 8 | . 3 . 5 Grunt 9 | . 3 4 2 Duelist 1 | . . 1 . Sentry 1 | . . 1 . Demolisher 2 | . . . 2 Assembled 9 | . . . 9 Best Kill Streak 10 | 1 2 2 10 Combat Bots Only 9 | . 2 2 9 Max Kills in Single Turn 2 | 1 1 1 2 Gunslinging . | . . . . Exploded 2 | . . . 2 Melee . | . . . . Uniques/NPCs Destroyed . | . . . . Combat | -11 -10 -9 -9 -------- Run | Yrd Mat Mat Min Hostile Shots Fired 196 | . 39 42 115 Missed 58 | . 15 10 33 Damage Taken 2345 | . 261 478 1606 Core 406 | . . 55 351 Absorbed by Shields . | . . . . Core Remaining (%) 100 | 100 100 . . Volleys Fired 103 | 5 26 27 45 Largest 2 | 2 2 2 2 Hottest 80 | 40 40 40 80 Shots Fired 184 | 10 52 54 68 Gun 151 | 10 52 54 35 Cannon 18 | . . . 18 Launcher 15 | . . . 15 Special . | . . . . Kinetic 151 | 10 52 54 35 Thermal 18 | . . . 18 Explosive 15 | . . . 15 Electromagnetic . | . . . . Robot Hit Streak 7 | 2 5 7 4 Robot Miss Streak 6 | 3 4 2 6 Penetration Max . | . . . . Secondary Targets 2 | . 1 1 . Max Gunslinging Chain 1 | . 1 1 . Shots Hit Robots 95 | 3 29 35 28 Core Hits 61 | 2 12 13 34 Critical Kills 1 | . 1 . . Critical Parts Destroyed . | . . . . Critical Strikes 1 | . 1 . . Destroy 1 | . 1 . . Melee Attacks . | . . . . Impact . | . . . . Slashing . | . . . . Piercing . | . . . . Sneak Attacks . | . . . . Combat Hostiles . | . . . . Follow-up Attacks . | . . . . Damage Inflicted 1576 | 25 274 373 904 Guns 796 | 25 274 373 124 Cannons 231 | . . . 231 Explosions 549 | . . . 549 Melee . | . . . . Ramming . | . . . . Kinetic 796 | 25 274 373 124 Thermal 231 | . . . 231 Explosive 549 | . . . 549 Electromagnetic . | . . . . Impact . | . . . . Slashing . | . . . . Piercing . | . . . . Highest Corruption 10 | . . . 10 Average Corruption 7 | . . . 7 Corruption Purged . | . . . . Corruption Blocked . | . . . . Effects 2 | . . . 2 Message Errors 1 | . . . 1 Parts Rejected 1 | . . . 1 Overload Shots . | . . . . Overflow Damage 7 | . . . 7 Projectiles . | . . . . Explosions 7 | . . . 7 Melee . | . . . . Knockbacks . | . . . . Impact . | . . . . Kinetic . | . . . . Secondary . | . . . . Self-Inflicted Damage 132 | . . . 132 Shots 5 | . . . 5 Rammed . | . . . . Targets Rammed . | . . . . Kicked . | . . . . Crushed . | . . . . Highest Temperature 164 | . 18 6 164 Average Temperature 39 | . 9 3 55 Received Heat Transfer 451 | . 96 174 181 Siege Activations . | . . . . Robots Corrupted . | . . . . Combat Hostiles . | . . . . Parts Fried . | . . . . Impact Corruptions . | . . . . Robots Melted . | . . . . Combat Hostiles . | . . . . Parts Melted . | . . . . Heat Transferred 481 | . . . 481 Parts Sabotaged . | . . . . Parts Stolen . | . . . . Parts Stripped . | . . . . Power Chain Reactions . | . . . . Alert | -11 -10 -9 -9 ------- Run | Yrd Mat Mat Min Peak Influence 243 | 5 199 200 243 Initial 78 | . 3 . 78 Average 97 | 1 102 85 110 Maximum Alert Level 1 | . . 1 1 Low Security (%) 90 | 100 100 83 87 Level 1 9 | . . 16 12 Level 2 . | . . . . Level 3 . | . . . . Level 4 . | . . . . Level 5 . | . . . . High Security . | . . . . Max Security . | . . . . Squads Dispatched 2 | . 1 1 . Investigation 1 | . 1 . . Extermination . | . . . . Reinforcement 1 | . . 1 . Assault . | . . . . Garrison . | . . . . Intercept . | . . . . Searches Triggered . | . . . . Construction Impeded . | . . . . Haulers Reinforced . | . . . . Active Scanning Responses . | . . . . Cargo Convoy Interrupts . | . . . . Stealth | -11 -10 -9 -9 --------- Run | Yrd Mat Mat Min Distress Signals 2 | . 1 1 . Communications Jammed . | . . . . Distress Signals . | . . . . Times Spotted 48 | . 8 13 27 Peak Tracking Total 4 | . 3 4 4 Tactical Retreats 4 | . 1 1 2 Traps | -11 -10 -9 -9 ------- Run | Yrd Mat Mat Min Traps Triggered 2 | . 2 . . Indirectly . | . . . . Trap Hack Attempts . | . . . . Triggered . | . . . . Disarmed . | . . . . Reprogrammed . | . . . . Reused . | . . . . Traps Extracted . | . . . . Installed . | . . . . Triggered . | . . . . Machines | -11 -10 -9 -9 ---------- Run | Yrd Mat Mat Min Machines Disabled . | . . . . Max in Single Turn . | . . . . Machines Repaired . | . . . . Machines Dismantled . | . . . . Machines Sabotaged . | . . . . Overloaded Fab Kills . | . . . . Hacking | -11 -10 -9 -9 --------- Run | Yrd Mat Mat Min Machines Accessed 3 | . 2 1 . Terminals 3 | . 2 1 . Fabricators . | . . . . Repair Stations . | . . . . Recycling Units . | . . . . Scanalyzers . | . . . . Garrison Access . | . . . . Total Hacks 10 | . 8 2 . Successful 3 | . 3 . . Failed 7 | . 5 2 . Catastrophic . | . . . . Database Lockouts . | . . . . Manual . | . . . . Terminals 10 | . 8 2 . Fabricators . | . . . . Repair Stations . | . . . . Recycling Units . | . . . . Scanalyzers . | . . . . Garrison Access . | . . . . Terminal Hacks 3 | . 3 . . Prototype ID Bank 1 | . 1 . . Alert Level 1 | . 1 . . Dispatch Records 1 | . 1 . . Fabricator Hacks . | . . . . Repair Station Hacks . | . . . . Recycling Unit Hacks . | . . . . Scanalyzer . | . . . . Garrison Access Hacks . | . . . . Unauthorized Hacks . | . . . . Terminals . | . . . . Fabricators . | . . . . Repair Stations . | . . . . Recycling Units . | . . . . Scanalyzers . | . . . . Garrison Access . | . . . . Data Cores Recovered . | . . . . Used . | . . . . Hacking Detections 2 | . 1 1 . Full Trace Events 1 | . 1 . . Feedback Events . | . . . . Feedback Blocked . | . . . . Robot Schematics Acquired . | . . . . Robots Built . | . . . . Authchips . | . . . . Time . | . . . . Total Robot Build Rating . | . . . . Part Schematics Acquired . | . . . . Parts Built . | . . . . Authchips . | . . . . Time . | . . . . Total Part Build Rating . | . . . . Parts Repaired . | . . . . Time . | . . . . Parts Recycled . | . . . . Recycled Matter . | . . . . Retrieved Matter . | . . . . Retrieved Components . | . . . . Parts Scanalyzed . | . . . . Part Schematics Acquired . | . . . . Parts Damaged . | . . . . Bothacking | -11 -10 -9 -9 ------------ Run | Yrd Mat Mat Min Used RIF Installer . | . . . . Robots Hacked . | . . . . Non-combat . | . . . . Combat . | . . . . Robot Hacks Applied . | . . . . Relay Couplers Released . | . . . . Fabnet Peak Effective % . | . . . . Robots Rewired . | . . . . Allies Hacked . | . . . . Hacks Repelled . | . . . . Allies | -11 -10 -9 -9 -------- Run | Yrd Mat Mat Min Total Allies . | . . . . Largest Group . | . . . . Highest-Rated Group . | . . . . Highest-Rated Ally . | . . . . Total Orders . | . . . . Ally Attacks . | . . . . Total Damage . | . . . . Kills . | . . . . Allies Corrupted . | . . . . Allies Melted . | . . . . Intel | -11 -10 -9 -9 ------- Run | Yrd Mat Mat Min Robot Analysis Total . | . . . . Derelict Logs Recovered 1 | . . . 1 Drone Launches . | . . . . Drone Recoveries . | . . . . Exploration | -11 -10 -9 -9 ------------- Run | Yrd Mat Mat Min Turns Passed 1451 | 78 432 312 629 Spaces Moved 683 | 43 237 141 262 Core 9 | 7 . . 2 Treads 177 | . 127 50 . Legs 497 | 36 110 91 260 Wheels . | . . . . Hover . | . . . . Flight . | . . . . Fastest Speed 50 | 50 120 120 120 Average Speed 159 | 108 141 147 190 Slowest Speed 350 | 120 160 260 350 Overloaded Moves . | . . . . Propulsion Burnouts . | . . . . Robots Hopped . | . . . . Cave-ins Triggered . | . . . . Exploration Rate (%) 30 | 3 32 23 65 Regions Visited 3 Branch Regions 1 Pre-discovered Areas . | . . . . Known Exits Taken . | . . . . Unknown Exits Taken 3 | 1 1 1 . Scrap Searched . | . . . . Spaces Dug . | . . . . Terrain Destroyed 138 | . . . 138 Melee . | . . . . Projectile . | . . . . AOE 138 | . . . 138 Terrain Rammed . | . . . . Walls Destroyed . | . . . . Machines Disabled . | . . . . Actions | -11 -10 -9 -9 --------- Run | Yrd Mat Mat Min Total 885 | 65 294 196 330 Wait 6 | . 3 2 1 Move 680 | 42 236 140 262 Hop . | . . . . Pick Up 43 | 11 12 13 7 Fast Attach . | . . . . Attach 33 | 7 7 7 12 Detach 5 | . 4 1 . Swap 7 | . 1 4 2 Drop 8 | . 5 2 1 Fire 103 | 5 26 27 45 Melee . | . . . . Ram . | . . . . Kick . | . . . . Crush . | . . . . Escape Stasis . | . . . . Rewire . | . . . . Trap . | . . . . Miscellaneous . | . . . . Route ------- -11/Scrapyard -10/Materials -9/Materials -9/Mines (discovered 1 exit: [*Mat]) History --------- Turn | Location | Event 4 | -11/Scrapyard | Discovered new exit (range 15) 79 | -11/Scrapyard | Entered Materials 317 | -10/Materials | Build established: Mutant 357 | -10/Materials | Discovered new exit (range 9) 511 | -10/Materials | Entered another Materials area 511 | -9/Materials | Evolved 2 slots: Propulsion x1, Utility x1 779 | -9/Materials | Discovered new exit (range 16) 823 | -9/Materials | Entered Mines 884 | -9/Mines | Lost 3 parts (1n2w) 1044 | -9/Mines | Learned Materials security intel 1125 | -9/Mines | Discovered new exit (range 13) 1164 | -9/Mines | Build established: Scavenger-Mutant 1193 | -9/Mines | Assembled infested the area 1201 | -9/Mines | Core integrity fell below 50% 1254 | -9/Mines | Lost 8 parts (1p3n2u2w) 1401 | -9/Mines | Core integrity fell below 20% 1423 | -9/Mines | System corruption reached 10% 1445 | -9/Mines | Destroyed 9 combat bots 1452 | -9/Mines | Destroyed by as-32439 with Assembled Blade Last Messages --------------- 01416_ The unstable cave ceiling collapses. 01419_ as-51035 destroyed. 01419_ as-16692 destroyed. 01421_ The unstable cave ceiling collapses. 01422_ Terrain Scan Processor destroyed. 01422_ System corrupted by crushing effect (+4). [Achievement: System Compromised] 01423_ The unstable cave ceiling collapses. 01424_ as-84969 destroyed. 01425_ The unstable cave ceiling collapses. 01426_ Acquired 2 matter. 01432_ WPVFVH&PNDV5OWP6&MF5 Z7 BBFS Z5MJM 01439_ The unstable cave ceiling collapses. 01441_ Acquired 7 matter. 01444_ T-07 Excavator destroyed. 01444_ Mni. Grenade Launcher destroyed. 01446_ Aluminum Leg destroyed. 01446_ Acquired 11 matter. 01448_ Heat Sink destroyed. 01451_ The unstable cave ceiling collapses. Map ----- +----------------------------------------------------+ | | | | | | | | | | | | | | | ?????????????????????????????????????????????????? | | ??????????????????????????????????####???????????? | | ?????????????????????????????????## ####????????? | | ???????????????????????????????### ##???????? | | ???????????????????????????????? ##??????? | | ?????????????????????????????????# ##?????? | | ????????????????????????????????## ##????? | | ????????????????????????????????# ##???? | | ???????????????????#???????????## #???? | | ???????????????????# ?????????## #???? | | ???????????????????# ?????????# #???? | | ????????????????#### #####????### ##### ##??? | | ????????????????# # #?????# ###??## ##?? | | ????????????????# ####?## # #??## #?? | | ????????????????# # # ### #?## #?? | | ????????????????# # # # # #### #?? | | ???????????###### # % ## ##?# | | ???????? = #### ### | | ???????? ! a@ ## | | ???????????????### # ! # # ### | | ????????????????# %# #### ####?## # | | ????????????????##* ##??# #????## # | | ?????????????????#! a ##??? # #????## ## | | ?????????????????# #[###????######???## #? | | ????#????????????# #### #??????????????## ##? | | ??? #??????????? ???#[#??????????????# ##?? | | ??? #??????????###????#%#??????????????# ##??? | | ?? #?????????????????#*???????????????## ##???? | | ## #?????????????????#%??????????????### #????? | | #?????????????????[=??????????????# #????? | | #?????????????????##??????????????# #????? | | ##???????????????????????????????????# ####????? | | #????????????????????????????????????# #???????? | | ##????????????????????????????????????# ######??? | | #?????????????????????????????????????# #??? | | ###???????????????????????????????????## """ #??? | | ##???????????????????????????????????# """ #??? | | #???????????????????????????????????# """ #??? | | #???????????????????????????????????# #??? | | ##???????????????????????????????????# """ #??? | | ##????????????????????????????????????# """ #??? | | ##?????????????????????????????????????# """ #??? | | ##?????????????????????????????????????# #??? | +----------------------------------------------------+ Best States ------------- Heat Dissipation 38 Energy Generation 14 Energy Capacity 265 Matter Stores 300 Matter Capacity 300 Sight Range 16 Terrain Scan Density 85 ECM Strength 1 Armor Coverage 225 Evasion (%) 55 Recoil Reduction 2 Item Schematics ----------------- None Robot Schematics ------------------ None Fabricated ------------ Nothing Alien Tech Used ----------------- None Achievements -------------- Let's See Who's Tougher One Hack Too Far Storm Trooper System Compromised Challenges ------------ None Game ------ Seed ImprovedWeaponChainsword Manual? 0 Play Time 00:34:04 Cumulative 2.2 hours Start 2024.06.26 @ 11:32:05 End 2024.06.26 @ 12:06:57 Sessions 1 Manual Loads 0 Difficulty Rogue Special Mode None Game No. 3 Rogue 3 Adventurer 0 Explorer 0 Win Type - Total 0 Types 0/0/0/0/0/0/0/0/0 Lore% 0 Gallery% 4 Achievement% 5 Wizard Run 0 Options --------- Layout 0 ASCII 0 Keyboard 0 Movement Numpad Keybinds 0 Fullscreen 1 Font 18/Terminus Map View 76x50 Zoom Use 0% Tactical HUD 1 Map Filters NONE Filters NONE Steam 1 RUN: 05e5dba9-c69b-4c21-8899-f50e604e8dd3